[Event "Najdorf Memorial-A 2022"]
[Site "Warsaw"]
[Date "2022.07.11"]
[Round "3.2"]
[White "Golecki, Jan"]
[Black "Jarmula, Lukasz"]
[Result "0-1"]
[ECO "B07"]
[WhiteElo "2219"]
[BlackElo "2452"]
[Annotator "ChessBase"]
[PlyCount "94"]
[EventDate "2022.07.09"]
[EventType "swiss"]
[EventCountry "POL"]
[SourceTitle "playchess.com"]
[Source "ChessBase"]
[SourceQuality "1"]
[TimeControl "40/5400+30:1800+30"]

1. e4 {[%emt 0:00:03]} d6 {[%emt 0:00:05]} 2. d4 {[%emt 0:00:05]} Nf6 {[%emt 0:00:04]} 3. Nc3 {[%emt 0:00:07]} e5 {[%emt 0:00:05]} 4. dxe5 {[%emt 0:00:06]} dxe5 {[%emt 0:00:05]} 5. Qxd8+ {[%emt 0:00:04]} Kxd8 {[%emt 0:00:07]} 6. Bc4 {[%emt 0:00:04]} Ke8 {[%emt 0:00:11]} 7. Nf3 {[%emt 0:01:23]} Bd6 {[%emt 0:00:07]} 8. h3 {[%emt 0:00:55]} a6 {[%emt 0:03:45]} 9. a3 {[%emt 0:02:18]} b5 {[%emt 0:01:40]} 10. Bd3 {[%emt 0:00:57]} Nbd7 {[%emt 0:01:19]} 11. Bg5 {[%emt 0:00:31]} h6 {[%emt 0:00:46]} 12. Be3 {[%emt 0:03:38]} Bb7 {[%emt 0:00:43]} 13. b4 {[%emt 0:03:38]} c5 {[%emt 0:04:41]} 14. bxc5 {[%emt 0:14:18]} Nxc5 {[%emt 0:02:46]} 15. Rd1 {[%emt 0:07:33]} Nxd3+ {[%emt 0:07:54]} 16. Rxd3 {[%emt 0:00:06]} Ke7 {[%emt 0:02:02]} 17. O-O {[%emt 0:02:27]} Nxe4 {[%emt 0:02:31]} 18. Nh4 {[%emt 0:12:45]} g6 {[%emt 0:04:41]} 19. Rfd1 {[%emt 0:10:49]} Nxc3 {[%emt 0:01:58]} 20. Rxc3 {[%emt 0:00:04]} e4 {[%emt 0:01:13]} 21. Rb3 {[%emt 0:07:34]} Bc8 {[%emt 0:06:43]} 22. Bd4 {[%emt 0:00:55]} Rg8 {[%emt 0:00:13]} 23. Re3 {[%emt 0:10:01]} f5 {[%emt 0:01:09]} 24. g4 {[%emt 0:03:28]} Bb7 {[%emt 0:03:46]} 25. f3 {[%emt 0:05:38]} Rac8 {[%emt 0:05:57]} 26. fxe4 {[%emt 0:02:26]} fxe4 {[%emt 0:01:07]} 27. Nf3 {[%emt 0:02:02]} Bc5 {[%emt 0:12:40]} 28. Bxc5+ {[%emt 0:06:17]} Rxc5 {[%emt 0:00:13]} 29. Rd4 {[%emt 0:00:08]} Rxc2 {[%emt 0:06:05]} 30. Nd2 {[%emt 0:00:14]} Rd8 {[%emt 0:00:48]} 31. Rxd8 {[%emt 0:00:16]} Kxd8 {[%emt 0:00:05]} 32. Nxe4 {[%emt 0:00:12]} Kc7 {[%emt 0:05:12]} 33. h4 {[%emt 0:02:08]} Bxe4 {[%emt 0:01:33]} 34. Rxe4 {[%emt 0:00:06]} Rc4 {[%emt 0:00:05]} 35. Re7+ {[%emt 0:00:56]} Kd6 {[%emt 0:00:12]} 36. Ra7 {[%emt 0:00:06]} Rxg4+ {[%emt 0:00:06]} 37. Kf2 {[%emt 0:00:02]} Ra4 {[%emt 0:00:53]} 38. Rg7 {[%emt 0:00:18]} Rxa3 {[%emt 0:00:25]} 39. Rxg6+ {[%emt 0:00:04]} Kc5 {[%emt 0:00:20]} 40. Ke2 {[%emt 0:00:00]} a5 {[%emt 0:00:00]} 41. Rxh6 {[%emt 0:00:40]} Rh3 {[%emt 0:01:11]} 42. h5 {[%emt 0:01:21]} a4 {[%emt 0:00:42]} 43. Kd2 {[%emt 0:00:05]} Kb4 {[%emt 0:00:16]} 44. Kc1 {[%emt 0:01:06]} a3 {[%emt 0:00:47]} 45. Rg6 {[%emt 0:02:31]} Rh1+ {[%emt 0:00:28]} 46. Kc2 {[%emt 0:00:03]} a2 {[%emt 0:00:14]} 47. Rg4+ {[%emt 0:00:02]} Ka5 {[%emt 0:00:20]} 0-1

[Event "Najdorf Memorial-A 2022"]
[Site "Warsaw"]
[Date "2022.07.11"]
[Round "3.2"]
[White "Zalega, Maciej"]
[Black "Szewczyk, Mariusz"]
[Result "1/2-1/2"]
[ECO "C54"]
[WhiteElo "1912"]
[BlackElo "2103"]
[Annotator "ChessBase"]
[PlyCount "88"]
[EventDate "2022.07.09"]
[EventType "swiss"]
[EventCountry "POL"]
[SourceTitle "playchess.com"]
[Source "ChessBase"]
[SourceQuality "1"]
[TimeControl "40/5400+30:1800+30"]

1. e4 {[%emt 0:00:07]} e5 {[%emt 0:00:04]} 2. Nf3 {[%emt 0:00:02]} Nc6 {[%emt 0:00:05]} 3. Bc4 {[%emt 0:00:03]} Bc5 {[%emt 0:00:05]} 4. c3 {[%emt 0:00:03]} Nf6 {[%emt 0:00:03]} 5. d4 {[%emt 0:00:02]} exd4 {[%emt 0:00:05]} 6. b4 {[%emt 0:00:02]} Bb6 {[%emt 0:17:35]} 7. e5 {[%emt 0:00:06]} d5 {[%emt 0:01:00]} 8. exf6 {[%emt 0:00:22]} dxc4 {[%emt 0:00:16]} 9. Qe2+ {[%emt 0:00:04]} Be6 {[%emt 0:00:48]} 10. b5 {[%emt 0:00:03]} Nb8 {[%emt 0:02:33]} 11. fxg7 {[%emt 0:07:19]} Rg8 {[%emt 0:00:06]} 12. cxd4 {[%emt 0:00:31]} Bxd4 {[%emt 0:06:18]} 13. Nxd4 {[%emt 0:00:03]} Qxd4 {[%emt 0:00:09]} 14. Bb2 {[%emt 0:00:04]} Qd3 {[%emt 0:01:31]} 15. Nc3 {[%emt 0:15:08]} Nd7 {[%emt 0:07:51]} 16. Ne4 {[%emt 0:01:33]} O-O-O {[%emt 0:01:57]} 17. Qxd3 {[%emt 0:05:16]} cxd3 {[%emt 0:00:21]} 18. O-O-O {[%emt 0:00:05]} Bc4 {[%emt 0:21:21]} 19. Nf6 {[%emt 0:07:24]} Nxf6 {[%emt 0:00:42]} 20. Bxf6 {[%emt 0:00:01]} Rd5 {[%emt 0:09:42]} 21. g4 {[%emt 0:00:07]} Bxa2 {[%emt 0:04:21]} 22. Kb2 {[%emt 0:09:49]} Bc4 {[%emt 0:00:31]} 23. Rhe1 {[%emt 0:00:31]} Bxb5 {[%emt 0:09:25]} 24. Re3 {[%emt 0:01:24]} Rd6 {[%emt 0:08:34]} 25. g5 {[%emt 0:00:04]} Rb6 {[%emt 0:00:49]} 26. Kc3 {[%emt 0:01:51]} Rc6+ {[%emt 0:00:56]} 27. Kb4 {[%emt 0:01:21]} a6 {[%emt 0:00:56]} 28. Rh3 {[%emt 0:03:31]} Rc2 {[%emt 0:01:25]} 29. Rhxd3 {[%emt 0:07:42]} c5+ {[%emt 0:02:02]} 30. Ka3 {[%emt 0:00:45]} Bxd3 {[%emt 0:00:08]} 31. Rxd3 {[%emt 0:00:03]} Re2 {[%emt 0:00:35]} 32. Rh3 {[%emt 0:00:34]} Kd7 {[%emt 0:02:19]} 33. Rxh7 {[%emt 0:01:11]} Ree8 {[%emt 0:00:11]} 34. Rh3 {[%emt 0:02:42]} b5 {[%emt 0:00:25]} 35. Rf3 {[%emt 0:00:55]} Re4 {[%emt 0:00:50]} 36. Re3 {[%emt 0:03:43]} Rf4 {[%emt 0:01:49]} 37. Rd3+ {[%emt 0:03:23]} Ke6 {[%emt 0:00:37]} 38. Rd8 {[%emt 0:01:23]} Rf3+ {[%emt 0:00:09]} 39. Kb2 {[%emt 0:00:11]} Rxf2+ {[%emt 0:00:05]} 40. Kc1 {[%emt 0:00:00]} Rxg7 {[%emt 0:00:00]} 41. Bxg7 {[%emt 0:00:24]} Rxh2 {[%emt 0:01:09]} 42. Bf6 {[%emt 0:03:03]} b4 {[%emt 0:03:52]} 43. Ra8 {[%emt 0:02:23]} Ra2 {[%emt 0:03:18]} 44. Kb1 {[%emt 0:06:24]} b3 {[%emt 0:01:34]} 1/2-1/2

[Event "Najdorf Memorial-A 2022"]
[Site "Warsaw"]
[Date "2022.07.11"]
[Round "3.3"]
[White "Pacan-Milej, Kosma"]
[Black "Fiszer, Bartosz"]
[Result "1-0"]
[ECO "E71"]
[WhiteElo "2412"]
[BlackElo "2228"]
[Annotator "ChessBase"]
[PlyCount "85"]
[EventDate "2022.07.09"]
[EventType "swiss"]
[EventCountry "POL"]
[SourceTitle "playchess.com"]
[Source "ChessBase"]
[SourceQuality "1"]
[TimeControl "40/5400+30:1800+30"]

1. d4 {[%emt 0:00:04]} Nf6 {[%emt 0:00:06]} 2. c4 {[%emt 0:00:11]} g6 {[%emt 0:00:06]} 3. Nc3 {[%emt 0:00:07]} Bg7 {[%emt 0:00:05]} 4. e4 {[%emt 0:00:07]} d6 {[%emt 0:00:04]} 5. h3 {[%emt 0:00:10]} O-O {[%emt 0:01:59]} 6. Be3 {[%emt 0:00:04]} c5 {[%emt 0:00:44]} 7. d5 {[%emt 0:01:16]} e6 {[%emt 0:00:42]} 8. Nf3 {[%emt 0:00:29]} exd5 {[%emt 0:00:21]} 9. exd5 {[%emt 0:00:18]} Re8 {[%emt 0:03:01]} 10. Bd3 {[%emt 0:00:52]} Nh5 {[%emt 0:05:12]} 11. O-O {[%emt 0:06:19]} f5 {[%emt 0:00:36]} 12. Bg5 {[%emt 0:22:29]} Bf6 {[%emt 0:02:54]} 13. Bxf6 {[%emt 0:03:54]} Qxf6 {[%emt 0:01:39]} 14. Re1 {[%emt 0:02:03]} Rxe1+ {[%emt 0:01:06]} 15. Qxe1 {[%emt 0:00:04]} Bd7 {[%emt 0:00:24]} 16. Qd2 {[%emt 0:15:17]} Na6 {[%emt 0:03:49]} 17. Re1 {[%emt 0:02:37]} Re8 {[%emt 0:00:43]} 18. Rxe8+ {[%emt 0:20:59]} Bxe8 {[%emt 0:00:02]} 19. a3 {[%emt 0:01:10]} Bd7 {[%emt 0:02:25]} 20. Ne2 {[%emt 0:06:46]} b6 {[%emt 0:03:31]} 21. Kh2 {[%emt 0:01:58]} Kg7 {[%emt 0:02:22]} 22. Ng3 {[%emt 0:03:43]} Nxg3 {[%emt 0:02:10]} 23. fxg3 {[%emt 0:00:03]} h6 {[%emt 0:01:17]} 24. b4 {[%emt 0:01:55]} g5 {[%emt 0:01:25]} 25. b5 Nc7 26. a4 {[%emt 0:01:52]} Ne8 {[%emt 0:04:29]} 27. a5 {[%emt 0:03:37]} Qa1 {[%emt 0:13:36]} 28. axb6 {[%emt 0:00:04]} axb6 {[%emt 0:00:02]} 29. Qc2 {[%emt 0:00:14]} Kf6 {[%emt 0:15:48]} 30. h4 {[%emt 0:00:02]} f4 {[%emt 0:18:54]} 31. hxg5+ {[%emt 0:00:33]} hxg5 {[%emt 0:00:15]} 32. gxf4 {[%emt 0:00:05]} g4 {[%emt 0:03:07]} 33. Ng5 {[%emt 0:00:31]} Ke7 {[%emt 0:01:08]} 34. Bf5 {[%emt 0:03:47]} Nf6 {[%emt 0:08:02]} 35. Qe2+ {[%emt 0:01:57]} Kd8 {[%emt 0:00:02]} 36. Bxd7 {[%emt 0:00:09]} Kxd7 {[%emt 0:01:04]} 37. Qe6+ {[%emt 0:00:43]} Kc7 {[%emt 0:02:46]} 38. Nf7 Qd4 39. Qxd6+ {[%emt 0:02:20]} Kb7 {[%emt 0:00:44]} 40. Qc6+ {[%emt 0:00:00]} Ka7 {[%emt 0:00:00]} 41. Qc7+ {[%emt 0:01:59]} Ka8 {[%emt 0:00:15]} 42. Nd8 {[%emt 0:00:50]} g3+ {[%emt 0:00:26]} 43. Kh3 {[%emt 0:00:04]} 1-0

[Event "Najdorf Memorial-A 2022"]
[Site "Warsaw"]
[Date "2022.07.11"]
[Round "3.3"]
[White "Lewandrowski, Tomasz"]
[Black "Pires, Emanuel Joao Robarts"]
[Result "1/2-1/2"]
[ECO "D00"]
[WhiteElo "1902"]
[BlackElo "2062"]
[Annotator "ChessBase"]
[PlyCount "161"]
[EventDate "2022.07.09"]
[EventType "swiss"]
[EventCountry "POL"]
[SourceTitle "playchess.com"]
[Source "ChessBase"]
[SourceQuality "1"]
[TimeControl "40/5400+30:1800+30"]

1. d4 d5 2. Nc3 Nf6 3. Bf4 c6 4. e3 Bf5 5. f3 e6 6. g4 Bg6 7. h4 h6 8. Bd3 Bxd3 9. Qxd3 Bd6 10. Nge2 Qc7 11. Bxd6 Qxd6 12. O-O-O Nbd7 13. g5 Nh5 14. e4 Nf4 15. Qe3 Nxe2+ 16. Nxe2 O-O-O 17. e5 Qb4 18. g6 fxg6 19. Nf4 Nf8 20. Rdg1 Rd7 21. Nxg6 Nxg6 22. Rxg6 Rf7 23. Qd3 Rhf8 24. a3 Qe7 25. Rh3 Rf4 26. h5 R8f7 27. c3 R7f5 28. Rhg3 Qh4 29. Rxg7 Qxh5 30. Rg8+ Kc7 31. R8g7+ Kc8 32. Rg8+ Kc7 33. R8g7+ Kb6 34. Qd1 Rf7 35. Qb3+ Kc7 36. Qb4 Qf5 37. Qf8 Kb6 38. Rxf7 Qxf7 39. Qxh6 Rxf3 40. Rxf3 Qxf3 41. Qf6 Qh3 42. Qf8 Ka6 43. Kb1 Kb6 44. Ka2 Qd3 45. Qc5+ Ka6 46. a4 Qc2 47. Ka3 Qc1 48. Qd6 Ka5 49. Qc7+ Ka6 50. Kb3 Qf1 51. Qd6 Qc4+ 52. Ka3 b5 53. axb5+ Qxb5 54. b3 Qa5+ 55. Kb2 Qb5 56. Qxe6 Qe2+ 57. Ka3 Kb6 58. Qg6 Qe1 59. Kb2 a5 60. Qc2 Qe3 61. Ka3 Qe1 62. Qb2 Kb5 63. Ka2 Qe3 64. Qc2 Qe1 65. c4+ dxc4 66. Qxc4+ Kb6 67. Qc5+ Kb7 68. Kb2 Qd2+ 69. Ka3 Qe1 70. b4 Qa1+ 71. Kb3 a4+ 72. Kc4 a3 73. Qe7+ Ka6 74. Qd8 a2 75. Qa8+ Kb6 76. Qb8+ Ka6 77. b5+ cxb5+ 78. Qxb5+ Ka7 79. Qd7+ Ka6 80. Qc6+ Ka7 81. Qc7+ 1/2-1/2

[Event "Najdorf Memorial-A 2022"]
[Site "Warsaw"]
[Date "2022.07.11"]
[Round "3.4"]
[White "Padalka, Artem"]
[Black "Romanishin, Oleg M"]
[Result "0-1"]
[ECO "A20"]
[WhiteElo "2204"]
[BlackElo "2404"]
[Annotator "ChessBase"]
[PlyCount "106"]
[EventDate "2022.07.09"]
[EventType "swiss"]
[EventCountry "POL"]
[SourceTitle "playchess.com"]
[Source "ChessBase"]
[SourceQuality "1"]
[TimeControl "40/5400+30:1800+30"]

1. c4 {[%emt 0:11:28]} e5 {[%emt 0:00:06]} 2. g3 {[%emt 0:00:10]} Nf6 {[%emt 0:00:10]} 3. Bg2 {[%emt 0:00:03]} c6 {[%emt 0:01:32]} 4. d3 {[%emt 0:03:34]} d5 {[%emt 0:02:10]} 5. Nf3 {[%emt 0:00:46]} dxc4 {[%emt 0:02:07]} 6. Nc3 {[%emt 0:10:56]} cxd3 {[%emt 0:12:10]} 7. Nxe5 {[%emt 0:00:51]} Nbd7 {[%emt 0:01:59]} 8. Nxd3 {[%emt 0:04:29]} Nc5 {[%emt 0:00:14]} 9. Nxc5 {[%emt 0:17:15]} Qxd1+ {[%emt 0:00:10]} 10. Kxd1 {[%emt 0:05:44]} Bxc5 {[%emt 0:00:11]} 11. e3 {[%emt 0:00:54]} Be6 {[%emt 0:01:32]} 12. b3 {[%emt 0:01:12]} O-O-O+ {[%emt 0:02:21]} 13. Ke2 {[%emt 0:00:16]} Bf5 {[%emt 0:14:36]} 14. Rd1 {[%emt 0:06:29]} Rxd1 {[%emt 0:04:15]} 15. Nxd1 {[%emt 0:02:11]} Rd8 {[%emt 0:05:22]} 16. Bb2 {[%emt 0:04:04]} Bb4 {[%emt 0:13:27]} 17. Bd4 {[%emt 0:00:53]} Ba3 {[%emt 0:06:14]} 18. f3 {[%emt 0:08:44]} c5 {[%emt 0:03:18]} 19. Bxc5 {[%emt 0:02:20]} Bxc5 {[%emt 0:00:09]} 20. Rc1 {[%emt 0:00:03]} b6 {[%emt 0:01:09]} 21. b4 {[%emt 0:00:49]} Nd7 {[%emt 0:00:47]} 22. bxc5 {[%emt 0:05:14]} Nxc5 {[%emt 0:00:07]} 23. e4 {[%emt 0:00:06]} Be6 {[%emt 0:00:16]} 24. Rc2 {[%emt 0:01:15]} Kb8 {[%emt 0:02:34]} 25. Ne3 {[%emt 0:00:21]} Rd4 {[%emt 0:00:52]} 26. h4 {[%emt 0:08:48]} Ra4 {[%emt 0:00:27]} 27. Nd5 {[%emt 0:00:10]} Bxd5 {[%emt 0:00:36]} 28. exd5 {[%emt 0:00:01]} Kc7 {[%emt 0:00:27]} 29. Rd2 {[%emt 0:01:36]} Kd6 {[%emt 0:00:17]} 30. Bh3 {[%emt 0:00:39]} g6 {[%emt 0:01:44]} 31. Ke3 {[%emt 0:00:28]} Ra3+ {[%emt 0:01:35]} 32. Kf4 {[%emt 0:00:09]} Nd3+ {[%emt 0:03:10]} 33. Kg5 {[%emt 0:02:13]} Ne5 {[%emt 0:00:09]} 34. Rf2 {[%emt 0:00:57]} Nxf3+ {[%emt 0:05:50]} 35. Kh6 {[%emt 0:01:15]} Ne5 {[%emt 0:01:07]} 36. Rg2 {[%emt 0:00:57]} Rc3 {[%emt 0:01:39]} 37. Kxh7 {[%emt 0:00:18]} b5 {[%emt 0:00:17]} 38. Kg7 {[%emt 0:00:57]} a5 {[%emt 0:00:12]} 39. h5 {[%emt 0:00:44]} gxh5 {[%emt 0:01:14]} 40. Bf5 {[%emt 0:00:00]} b4 {[%emt 0:00:00]} 41. Kf6 {[%emt 0:00:24]} Rf3 {[%emt 0:05:57]} 42. Re2 {[%emt 0:16:04]} Nd7+ {[%emt 0:08:13]} 43. Kg5 {[%emt 0:00:25]} f6+ {[%emt 0:00:07]} 44. Kg6 {[%emt 0:00:32]} Rxg3+ {[%emt 0:00:11]} 45. Kf7 {[%emt 0:00:23]} Ne5+ {[%emt 0:00:08]} 46. Kxf6 {[%emt 0:00:34]} Ng4+ {[%emt 0:00:12]} 47. Kg7 {[%emt 0:12:05]} Ne3+ {[%emt 0:01:01]} 48. Bg6 {[%emt 0:00:01]} h4 {[%emt 0:01:59]} 49. Kf7 {[%emt 0:00:33]} h3 {[%emt 0:01:07]} 50. Be4 {[%emt 0:00:20]} Ng4 {[%emt 0:00:51]} 51. Bh1 {[%emt 0:01:24]} Re3 {[%emt 0:00:27]} 52. Rc2 {[%emt 0:00:17]} Re1 {[%emt 0:02:09]} 53. Rc6+ {[%emt 0:00:10]} Kd7 {[%emt 0:00:05]} 0-1

[Event "Najdorf Memorial-A 2022"]
[Site "Warsaw"]
[Date "2022.07.11"]
[Round "3.4"]
[White "Kaminski, Jan"]
[Black "Praczukowski, Stanislaw"]
[Result "0-1"]
[ECO "B90"]
[WhiteElo "1870"]
[BlackElo "2055"]
[Annotator "ChessBase"]
[PlyCount "56"]
[EventDate "2022.07.09"]
[EventType "swiss"]
[EventCountry "POL"]
[SourceTitle "playchess.com"]
[Source "ChessBase"]
[SourceQuality "1"]
[TimeControl "40/5400+30:1800+30"]

1. e4 {[%emt 0:00:02]} c5 {[%emt 0:00:08]} 2. Nf3 {[%emt 0:00:05]} d6 {[%emt 0:00:17]} 3. d4 {[%emt 0:00:05]} cxd4 {[%emt 0:00:05]} 4. Nxd4 {[%emt 0:00:04]} Nf6 {[%emt 0:00:10]} 5. Nc3 {[%emt 0:00:04]} a6 {[%emt 0:01:19]} 6. h3 {[%emt 0:00:11]} e6 {[%emt 0:00:41]} 7. g4 {[%emt 0:00:15]} Be7 {[%emt 0:00:42]} 8. g5 {[%emt 0:00:31]} Nfd7 {[%emt 0:00:51]} 9. h4 {[%emt 0:01:02]} b5 {[%emt 0:01:09]} 10. a3 {[%emt 0:03:48]} Bb7 {[%emt 0:01:04]} 11. Be3 {[%emt 0:02:00]} Nc6 {[%emt 0:01:23]} 12. Nxc6 {[%emt 0:00:44]} Bxc6 {[%emt 0:00:10]} 13. Qd4 {[%emt 0:02:53]} O-O {[%emt 0:05:44]} 14. O-O-O {[%emt 0:04:48]} Rb8 {[%emt 0:08:33]} 15. f4 {[%emt 0:05:15]} a5 {[%emt 0:00:30]} 16. h5 {[%emt 0:07:53]} b4 {[%emt 0:06:10]} 17. Nb1 {[%emt 0:02:58]} e5 {[%emt 0:15:41]} 18. Qd2 {[%emt 0:12:21]} bxa3 {[%emt 0:13:44]} 19. bxa3 {[%emt 0:03:32]} Qc7 {[%emt 0:04:17]} 20. Qc3 {[%emt 0:04:24]} Qb7 {[%emt 0:03:06]} 21. Nd2 {[%emt 0:00:58]} Rfc8 {[%emt 0:06:39]} 22. Bc4 {[%emt 0:02:50]} Bxe4 {[%emt 0:12:50]} 23. Rh4 {[%emt 0:07:44]} Bd5 {[%emt 0:03:13]} 24. h6 {[%emt 0:04:46]} Nb6 {[%emt 0:02:07]} 25. Bxb6 {[%emt 0:06:58]} Qxb6 {[%emt 0:00:14]} 26. Rg4 {[%emt 0:02:51]} Bxc4 {[%emt 0:01:00]} 27. Nxc4 {[%emt 0:01:39]} Qb1+ {[%emt 0:00:31]} 28. Kd2 {[%emt 0:00:07]} Rd8 {[%emt 0:00:13]} 0-1

[Event "Najdorf Memorial-A 2022"]
[Site "Warsaw"]
[Date "2022.07.11"]
[Round "3.5"]
[White "Golubka, Petro"]
[Black "Starosciak, Szymon"]
[Result "1-0"]
[ECO "D40"]
[WhiteElo "2378"]
[BlackElo "1901"]
[Annotator "ChessBase"]
[PlyCount "43"]
[EventDate "2022.07.09"]
[EventType "swiss"]
[EventCountry "POL"]
[SourceTitle "playchess.com"]
[Source "ChessBase"]
[SourceQuality "1"]
[TimeControl "40/5400+30:1800+30"]

1. d4 {[%emt 0:04:03]} d5 {[%emt 0:00:34]} 2. c4 {[%emt 0:00:04]} e6 {[%emt 0:01:19]} 3. Nc3 {[%emt 0:00:08]} Nf6 {[%emt 0:00:11]} 4. Nf3 {[%emt 0:00:28]} c5 {[%emt 0:01:26]} 5. e3 {[%emt 0:00:55]} dxc4 {[%emt 0:03:14]} 6. Bxc4 {[%emt 0:00:03]} a6 {[%emt 0:04:04]} 7. a4 {[%emt 0:00:05]} Be7 {[%emt 0:02:50]} 8. Qe2 {[%emt 0:04:04]} O-O {[%emt 0:05:42]} 9. O-O {[%emt 0:00:07]} Nc6 {[%emt 0:04:59]} 10. Rd1 {[%emt 0:00:08]} Qc7 {[%emt 0:02:26]} 11. b3 {[%emt 0:00:39]} Rd8 {[%emt 0:03:57]} 12. Bb2 {[%emt 0:00:53]} b6 {[%emt 0:10:49]} 13. d5 {[%emt 0:03:55]} exd5 {[%emt 0:02:59]} 14. Nxd5 {[%emt 0:04:49]} Nxd5 {[%emt 0:00:12]} 15. Bxd5 {[%emt 0:00:12]} Rd6 {[%emt 0:08:12]} 16. Be5 {[%emt 0:01:30]} Nxe5 {[%emt 0:02:06]} 17. Bxa8 {[%emt 0:00:03]} Rh6 {[%emt 0:01:16]} 18. Nxe5 {[%emt 0:01:09]} Qxe5 {[%emt 0:00:05]} 19. f4 {[%emt 0:00:38]} Qb8 {[%emt 0:03:55]} 20. Bd5 {[%emt 0:00:13]} b5 {[%emt 0:01:37]} 21. axb5 {[%emt 0:00:20]} axb5 {[%emt 0:00:05]} 22. Ra8 {[%emt 0:00:12]} 1-0

[Event "Najdorf Memorial-A 2022"]
[Site "Warsaw"]
[Date "2022.07.11"]
[Round "3.5"]
[White "Spicak, Krzysztof"]
[Black "Liberadzki, Slawomir"]
[Result "0-1"]
[ECO "A04"]
[WhiteElo "1858"]
[BlackElo "2035"]
[Annotator "ChessBase"]
[PlyCount "98"]
[EventDate "2022.07.09"]
[EventType "swiss"]
[EventCountry "POL"]
[SourceTitle "playchess.com"]
[Source "ChessBase"]
[SourceQuality "1"]
[TimeControl "40/5400+30:1800+30"]

1. Nf3 {[%emt 0:00:03]} c5 {[%emt 0:18:20]} 2. c4 {[%emt 0:00:18]} Nc6 {[%emt 0:01:09]} 3. b3 {[%emt 0:00:23]} Nf6 {[%emt 0:05:35]} 4. Bb2 {[%emt 0:00:35]} e6 {[%emt 0:00:08]} 5. g3 {[%emt 0:02:34]} d5 {[%emt 0:00:08]} 6. Bg2 {[%emt 0:00:19]} d4 {[%emt 0:01:02]} 7. d3 {[%emt 0:00:16]} Be7 {[%emt 0:01:35]} 8. O-O {[%emt 0:00:07]} O-O {[%emt 0:00:09]} 9. a3 {[%emt 0:04:11]} e5 10. Nbd2 {[%emt 0:00:30]} h6 {[%emt 0:05:20]} 11. Qc2 {[%emt 0:00:26]} Bf5 {[%emt 0:02:11]} 12. Rad1 {[%emt 0:04:17]} Qc7 {[%emt 0:04:04]} 13. Ne4 {[%emt 0:04:30]} Bh7 {[%emt 0:07:14]} 14. Nxf6+ {[%emt 0:01:57]} Bxf6 {[%emt 0:03:15]} 15. Nd2 {[%emt 0:00:19]} Rae8 {[%emt 0:03:43]} 16. Bd5 {[%emt 0:05:23]} Be7 {[%emt 0:02:32]} 17. e4 {[%emt 0:03:14]} Bd6 {[%emt 0:02:30]} 18. Rc1 {[%emt 0:08:41]} Kh8 {[%emt 0:05:06]} 19. b4 {[%emt 0:01:45]} cxb4 {[%emt 0:05:57]} 20. c5 {[%emt 0:00:07]} Be7 {[%emt 0:00:18]} 21. Bxc6 {[%emt 0:03:26]} Qxc6 {[%emt 0:03:24]} 22. axb4 {[%emt 0:00:08]} f5 {[%emt 0:01:10]} 23. f3 {[%emt 0:00:15]} fxe4 {[%emt 0:02:01]} 24. fxe4 {[%emt 0:03:31]} Bg5 {[%emt 0:06:40]} 25. Rxf8+ {[%emt 0:00:53]} Rxf8 {[%emt 0:00:06]} 26. Rf1 {[%emt 0:00:18]} Rxf1+ {[%emt 0:01:53]} 27. Nxf1 {[%emt 0:00:02]} Bg8 {[%emt 0:02:50]} 28. h4 {[%emt 0:13:29]} Be7 {[%emt 0:00:10]} 29. Nh2 {[%emt 0:00:53]} Qg6 {[%emt 0:04:26]} 30. Kf2 {[%emt 0:00:14]} Be6 {[%emt 0:00:59]} 31. b5 {[%emt 0:06:21]} Bh3 {[%emt 0:01:21]} 32. Qe2 {[%emt 0:01:29]} Bxc5 {[%emt 0:01:48]} 33. Bc1 {[%emt 0:00:53]} Bd7 {[%emt 0:01:00]} 34. g4 {[%emt 0:01:22]} Bxb5 {[%emt 0:01:32]} 35. g5 {[%emt 0:01:04]} Be7 {[%emt 0:01:01]} 36. Kg3 {[%emt 0:10:26]} hxg5 {[%emt 0:01:16]} 37. h5 {[%emt 0:00:28]} Qf7 {[%emt 0:00:42]} 38. Qg4 {[%emt 0:07:45]} Bxd3 {[%emt 0:02:02]} 39. h6 {[%emt 0:00:55]} gxh6 {[%emt 0:00:48]} 40. Qc8+ {[%emt 0:00:00]} Bf8 {[%emt 0:00:00]} 41. Nf3 {[%emt 0:02:21]} Bxe4 {[%emt 0:12:59]} 42. Nxe5 {[%emt 0:02:08]} Qf5 {[%emt 0:04:03]} 43. Qc7 {[%emt 0:03:36]} Bg7 {[%emt 0:02:06]} 44. Nf7+ {[%emt 0:02:25]} Kh7 {[%emt 0:01:25]} 45. Bxg5 {[%emt 0:00:15]} hxg5 {[%emt 0:01:22]} 46. Nxg5+ {[%emt 0:00:47]} Qxg5+ {[%emt 0:00:10]} 47. Kf2 {[%emt 0:00:14]} Qe3+ {[%emt 0:01:32]} 48. Kf1 {[%emt 0:00:17]} Qf3+ {[%emt 0:00:07]} 49. Ke1 {[%emt 0:00:09]} Qc3+ {[%emt 0:00:10]} 0-1

[Event "Najdorf Memorial-A 2022"]
[Site "Warsaw"]
[Date "2022.07.11"]
[Round "3.6"]
[White "Goraj, Barbara"]
[Black "Gasiorek, Dariusz"]
[Result "1-0"]
[ECO "A14"]
[WhiteElo "2035"]
[BlackElo "1854"]
[Annotator "ChessBase"]
[PlyCount "46"]
[EventDate "2022.07.09"]
[EventType "swiss"]
[EventCountry "POL"]
[SourceTitle "playchess.com"]
[Source "ChessBase"]
[SourceQuality "1"]
[TimeControl "40/5400+30:1800+30"]

1. Nf3 {[%emt 0:00:04]} d5 {[%emt 0:00:35]} 2. c4 {[%emt 0:00:10]} e6 {[%emt 0:01:41]} 3. g3 {[%emt 0:00:09]} Nf6 {[%emt 0:00:38]} 4. Bg2 {[%emt 0:00:11]} Be7 {[%emt 0:01:07]} 5. O-O {[%emt 0:00:23]} O-O {[%emt 0:11:00]} 6. b3 {[%emt 0:00:23]} c5 {[%emt 0:00:30]} 7. Bb2 {[%emt 0:00:30]} Nc6 {[%emt 0:04:13]} 8. e3 {[%emt 0:00:10]} b6 {[%emt 0:08:17]} 9. Nc3 {[%emt 0:00:42]} Bb7 {[%emt 0:01:51]} 10. cxd5 {[%emt 0:00:31]} Nxd5 {[%emt 0:08:24]} 11. Nxd5 {[%emt 0:00:49]} Qxd5 {[%emt 0:07:51]} 12. d4 {[%emt 0:23:43]} Rfd8 {[%emt 0:09:02]} 13. Ne5 {[%emt 0:03:34]} Qd6 {[%emt 0:02:08]} 14. Qh5 {[%emt 0:16:39]} Nxe5 {[%emt 0:21:59]} 15. Bxb7 {[%emt 0:08:42]} Rab8 {[%emt 0:00:36]} 16. dxc5 {[%emt 0:03:34]} Qxc5 {[%emt 0:01:19]} 17. Rac1 {[%emt 0:06:43]} Nc4 {[%emt 0:05:08]} 18. Qg4 {[%emt 0:16:16]} Qg5 {[%emt 0:01:40]} 19. Rxc4 {[%emt 0:01:24]} Rxb7 {[%emt 0:00:32]} 20. Qe2 {[%emt 0:01:21]} Qb5 {[%emt 0:04:42]} 21. Bxg7 {[%emt 0:03:29]} Rc7 {[%emt 0:03:07]} 22. Bf6 {[%emt 0:01:40]} Rxc4 {[%emt 0:04:10]} 23. bxc4 {[%emt 0:00:50]} Qc5 1-0